Cogmind - Beta 13 @@@ ROGUE MODE // 2024.06.14 @ 13:22:19 Player: Gilly Result: Destroyed by G-34 Mercenary with Small Laser Performance ------------- Evolutions (1) 500 Regions Visited (2) 400 Robots Destroyed (11) 55 Value Destroyed (242) 242 Prototype IDs (0) 0 Alien Tech Used (0) 0 Bonus (0) 0 TOTAL SCORE: 1197 Bonus ------- None Cogmind --------- Core Integrity 0/400 Matter 250/300 Energy 100/100 System Corruption 0% Temperature Cool (6) Movement Rolling (160) Ox4 Location -9/Materials Parts ------- > --- POWER (1) -------- (None) > --- PROPULSION (4) --- Compact Wheel > --- UTILITY (2) ------ Huge Storage Unit > --- WEAPON (2) ------- (None) > --- INVENTORY (25) --- (None) Peak State ------------ > --- POWER ------------ Light Ion Engine > --- PROPULSION ------- Improved Hover Unit Improved Hover Unit Improved Hover Unit Improved Hover Unit > --- UTILITY ---------- Small Storage Unit Core Shielding > --- WEAPON ----------- EM Pulse Gun EM Pulse Gun > --- INVENTORY -------- Light Ion Engine Compact Wheel Hover Unit Light EM Pulse Cannon Light EM Pulse Cannon Datajack [Rating: 13] Favorites ----------- Power Light Ion Engine Engine Light Ion Engine Propulsion Improved Hover Unit Treads Light Treads Leg Aluminum Leg Wheel Compact Wheel Hover Unit Improved Hover Unit Utility Small Storage Unit Storage Small Storage Unit Protection Core Shielding Weapon EM Pulse Gun Energy Gun EM Pulse Gun Energy Cannon Light EM Pulse Cannon Ballistic Gun Assault Rifle Special Melee Weapon Datajack Build | -11 -10 -9 ------- Run | Yrd Mat Mat Slots Evolved 2 | . . 2 Power . | . . . Propulsion 2 | . . 2 Utility . | . . . Weapon . | . . . Parts Attached 24 | 6 8 10 Power 3 | 1 1 1 Engine 3 | 1 1 1 Core . | . . . Reactor . | . . . Propulsion 11 | 2 4 5 Treads 2 | . 2 . Leg 2 | 2 . . Wheel 1 | . . 1 Hover 6 | . 2 4 Flight . | . . . Utility 3 | 1 1 1 Device . | . . . Storage 2 | 1 . 1 Processor . | . . . Hackware . | . . . Protection 1 | . 1 . Artifact . | . . . Weapon 7 | 2 2 3 Energy Gun 3 | 1 2 . Energy Cannon 2 | . . 2 Ballistic Gun 1 | 1 . . Ballistic Cannon . | . . . Launcher . | . . . Special Weapon . | . . . Impact Weapon . | . . . Slashing Weapon . | . . . Piercing Weapon . | . . . Special Melee Weapon 1 | . . 1 Unidentified Prototypes . | . . . Parts Lost 16 | . 2 14 Power 3 | . 1 2 Propulsion 6 | . . 6 Utility 1 | . . 1 Weapon 6 | . 1 5 Highest Loss Streak 12 | . 2 12 To Critical Strikes . | . . . Average Slot Usage (%) 92 | . 96 84 Engine 11 | . 11 9 Treads 2 | . 4 . Leg 13 | . 19 . Hover 14 | . 4 35 Storage 13 | . 14 11 Protection 12 | . 13 9 Energy Gun 17 | . 19 13 Energy Cannon 1 | . . 4 Ballistic Gun 5 | . 7 . Naked Turns . | . . . Heaviest Build 90 | 12 13 90 Greatest Support 40 | 20 40 28 Greatest Overweight (x) 26 | 2 4 26 Average Overweight (x) . | . . . Largest Inventory Capacity 25 | 8 8 25 Average Capacity 9 | 7 8 13 Most Carried 8 | 7 8 7 Average Carried 5 | 4 6 4 Final Capacity 25 | 8 8 25 Final Carried 8 | 7 8 . Class Distribution -------------------- 100% | Mutant Dominant Class ---------------- Mutant | -10/Materials Mutant | -9/Materials Resources | -11 -10 -9 ----------- Run | Yrd Mat Mat Matter Collected 370 | 260 93 17 Remotely . | . . . Salvage Created 304 | 23 216 65 Parts 27 | 4 17 6 Haulers Intercepted . | . . . Recyclers Shooed . | . . . Parts Field Recycled . | . . . Retrieved Matter . | . . . Parts Self-Destructed . | . . . Prevented . | . . . Kills | -11 -10 -9 ------- Run | Yrd Mat Mat Combat Hostiles Destroyed 7 | . 6 1 Guns 6 | . 6 . Cannons 1 | . . 1 Classes Destroyed 5 | 1 4 . Worker 1 | . 1 . Tunneler 1 | 1 . . Operator 2 | . 1 1 Swarmer 3 | . 3 . Grunt 4 | . 3 1 Best Kill Streak 3 | 1 3 1 Combat Bots Only 3 | . 3 1 Max Kills in Single Turn 1 | 1 1 1 Gunslinging . | . . . Exploded . | . . . Melee . | . . . Uniques/NPCs Destroyed . | . . . Combat | -11 -10 -9 -------- Run | Yrd Mat Mat Hostile Shots Fired 175 | . 63 112 Missed 37 | . 15 22 Damage Taken 1583 | . 503 1080 Core 512 | . 109 403 Absorbed by Shields . | . . . Redirected to Shielding 50 | . 22 28 Core Remaining (%) 78 | 100 56 . Volleys Fired 39 | 1 28 10 Largest 2 | 1 2 2 Hottest 96 | 50 80 96 Shots Fired 71 | 1 54 16 Gun 67 | 1 54 12 Cannon 4 | . . 4 Launcher . | . . . Special . | . . . Kinetic 20 | . 20 . Thermal 23 | 1 22 . Explosive . | . . . Electromagnetic 28 | . 12 16 Robot Hit Streak 10 | 1 10 4 Robot Miss Streak 4 | . 4 3 Penetration Max . | . . . Secondary Targets 1 | . 1 . Max Gunslinging Chain 1 | . 1 . Shots Hit Robots 40 | 1 32 7 Core Hits 17 | 1 11 5 Critical Kills . | . . . Critical Parts Destroyed . | . . . Critical Strikes 1 | . 1 . Burn 1 | . 1 . Melee Attacks . | . . . Impact . | . . . Slashing . | . . . Piercing . | . . . Sneak Attacks . | . . . Combat Hostiles . | . . . Follow-up Attacks . | . . . Damage Inflicted 600 | 13 473 114 Guns 503 | 13 423 67 Cannons 47 | . . 47 Explosions 50 | . 50 . Melee . | . . . Ramming . | . . . Kinetic 141 | . 141 . Thermal 239 | 13 226 . Explosive . | . . . Electromagnetic 220 | . 106 114 Impact . | . . . Slashing . | . . . Piercing . | . . . Highest Corruption . | . . . Average Corruption . | . . . Corruption Purged . | . . . Corruption Blocked . | . . . Overload Shots . | . . . Overflow Damage . | . . . Projectiles . | . . . Explosions . | . . . Melee . | . . . Knockbacks . | . . . Impact . | . . . Kinetic . | . . . Secondary . | . . . Self-Inflicted Damage 30 | . 30 . Shots 1 | . 1 . Rammed . | . . . Targets Rammed . | . . . Kicked . | . . . Crushed . | . . . Highest Temperature 192 | 10 106 192 Average Temperature 51 | 7 39 72 Received Heat Transfer 762 | . 123 639 Siege Activations . | . . . Robots Corrupted . | . . . Combat Hostiles . | . . . Parts Fried . | . . . Impact Corruptions . | . . . Robots Melted . | . . . Combat Hostiles . | . . . Parts Melted 2 | . 2 . Heat Transferred 729 | 37 692 . Parts Sabotaged . | . . . Parts Stolen . | . . . Parts Stripped . | . . . Power Chain Reactions 1 | . 1 . Alert | -11 -10 -9 ------- Run | Yrd Mat Mat Peak Influence 181 | 5 181 135 Initial 3 | . 3 . Average 74 | 2 102 49 Maximum Alert Level . | . . . Low Security (%) 100 | 100 100 100 Level 1 . | . . . Level 2 . | . . . Level 3 . | . . . Level 4 . | . . . Level 5 . | . . . High Security . | . . . Max Security . | . . . Squads Dispatched 3 | . 2 1 Investigation 1 | . 1 . Extermination . | . . . Reinforcement 2 | . 1 1 Assault . | . . . Garrison . | . . . Intercept . | . . . Searches Triggered . | . . . Construction Impeded . | . . . Haulers Reinforced . | . . . Active Scanning Responses . | . . . Cargo Convoy Interrupts . | . . . Stealth | -11 -10 -9 --------- Run | Yrd Mat Mat Distress Signals 1 | . 1 . Communications Jammed . | . . . Distress Signals . | . . . Times Spotted 22 | . 9 13 Peak Tracking Total 6 | . 4 6 Tactical Retreats 2 | . . 2 Traps | -11 -10 -9 ------- Run | Yrd Mat Mat Traps Triggered 1 | . 1 . Indirectly . | . . . Trap Hack Attempts . | . . . Triggered . | . . . Disarmed . | . . . Reprogrammed . | . . . Reused . | . . . Traps Extracted . | . . . Installed . | . . . Triggered . | . . . Machines | -11 -10 -9 ---------- Run | Yrd Mat Mat Machines Disabled 1 | . . 1 Max in Single Turn 1 | . . 1 Machines Repaired . | . . . Machines Dismantled . | . . . Machines Sabotaged . | . . . Overloaded Fab Kills . | . . . Hacking | -11 -10 -9 --------- Run | Yrd Mat Mat Machines Accessed . | . . . Terminals . | . . . Fabricators . | . . . Repair Stations . | . . . Recycling Units . | . . . Scanalyzers . | . . . Garrison Access . | . . . Total Hacks . | . . . Successful . | . . . Failed . | . . . Catastrophic . | . . . Database Lockouts . | . . . Manual . | . . . Terminals . | . . . Fabricators . | . . . Repair Stations . | . . . Recycling Units . | . . . Scanalyzers . | . . . Garrison Access . | . . . Terminal Hacks . | . . . Fabricator Hacks . | . . . Repair Station Hacks . | . . . Recycling Unit Hacks . | . . . Scanalyzer . | . . . Garrison Access Hacks . | . . . Unauthorized Hacks . | . . . Terminals . | . . . Fabricators . | . . . Repair Stations . | . . . Recycling Units . | . . . Scanalyzers . | . . . Garrison Access . | . . . Data Cores Recovered 1 | . 1 . Used . | . . . Hacking Detections . | . . . Full Trace Events . | . . . Feedback Events . | . . . Feedback Blocked . | . . . Robot Schematics Acquired . | . . . Robots Built . | . . . Authchips . | . . . Time . | . . . Total Robot Build Rating . | . . . Part Schematics Acquired . | . . . Parts Built . | . . . Authchips . | . . . Time . | . . . Total Part Build Rating . | . . . Parts Repaired . | . . . Time . | . . . Parts Recycled . | . . . Recycled Matter . | . . . Retrieved Matter . | . . . Retrieved Components . | . . . Parts Scanalyzed . | . . . Part Schematics Acquired . | . . . Parts Damaged . | . . . Bothacking | -11 -10 -9 ------------ Run | Yrd Mat Mat Used RIF Installer . | . . . Robots Hacked . | . . . Non-combat . | . . . Combat . | . . . Robot Hacks Applied . | . . . Relay Couplers Released . | . . . Fabnet Peak Effective % . | . . . Robots Rewired . | . . . Allies Hacked . | . . . Hacks Repelled . | . . . Allies | -11 -10 -9 -------- Run | Yrd Mat Mat Total Allies . | . . . Largest Group . | . . . Highest-Rated Group . | . . . Highest-Rated Ally . | . . . Total Orders . | . . . Ally Attacks . | . . . Total Damage . | . . . Kills . | . . . Allies Corrupted . | . . . Allies Melted . | . . . Intel | -11 -10 -9 ------- Run | Yrd Mat Mat Robot Analysis Total . | . . . Derelict Logs Recovered . | . . . Drone Launches . | . . . Drone Recoveries . | . . . Exploration | -11 -10 -9 ------------- Run | Yrd Mat Mat Turns Passed 697 | 93 414 190 Spaces Moved 586 | 61 300 225 Core 21 | 19 1 1 Treads 29 | . 29 . Legs 204 | 42 162 . Wheels 4 | . . 4 Hover 328 | . 108 220 Flight . | . . . Fastest Speed 48 | 50 56 48 Average Speed 90 | 119 101 67 Slowest Speed 1350 | 150 250 1350 Overloaded Moves . | . . . Propulsion Burnouts . | . . . Robots Hopped . | . . . Cave-ins Triggered . | . . . Exploration Rate (%) 31 | 4 63 27 Regions Visited 2 Branch Regions . Pre-discovered Areas . | . . . Known Exits Taken . | . . . Unknown Exits Taken 2 | 1 1 . Scrap Searched . | . . . Spaces Dug . | . . . Terrain Destroyed 2 | . 2 . Melee . | . . . Projectile . | . . . AOE 2 | . 2 . Terrain Rammed . | . . . Walls Destroyed . | . . . Machines Disabled . | . . . Actions | -11 -10 -9 --------- Run | Yrd Mat Mat Total 689 | 80 361 248 Wait . | . . . Move 584 | 60 299 225 Hop . | . . . Pick Up 30 | 13 15 2 Fast Attach . | . . . Attach 23 | 6 8 9 Detach . | . . . Swap 1 | . . 1 Drop 12 | . 11 1 Fire 39 | 1 28 10 Melee . | . . . Ram . | . . . Kick . | . . . Crush . | . . . Escape Stasis . | . . . Rewire . | . . . Trap . | . . . Miscellaneous . | . . . Route ------- -11/Scrapyard -10/Materials (discovered 3 exits: [*Mat x2] / [*Min]) -9/Materials History --------- Turn | Location | Event 11 | -11/Scrapyard | Discovered new exit (range 16) 94 | -11/Scrapyard | Entered Materials 254 | -10/Materials | Discovered new exit (range 15) 307 | -10/Materials | Build established: Mutant 341 | -10/Materials | Discovered new exit (range 3) 495 | -10/Materials | Discovered new exit (range 10) 508 | -10/Materials | Entered another Materials area 508 | -9/Materials | Evolved 2 slots: Propulsion x2 682 | -9/Materials | Core integrity fell below 50% 688 | -9/Materials | Core integrity fell below 20% 698 | -9/Materials | Destroyed by G-34 Mercenary with Small Laser Last Messages --------------- Hover Unit destroyed. Imp. Hover Unit destroyed. EM Pulse Gun destroyed. Lgt. Ion Engine destroyed. Imp. Hover Unit destroyed. Critical hit (Burn: +37). Lgt. EM Pulse Cannon destroyed. G-34 Mercenary destroyed. K-01 Serf collects debris. K-01 Serf collects debris. Lgt. EM Pulse Cannon destroyed. K-01 Serf collects debris. Imp. Hover Unit destroyed. Lgt. Ion Engine destroyed. Hover Unit destroyed. Datajack destroyed. K-01 Serf collects debris. Core Shielding destroyed. K-01 Serf collects debris. G-47 Trooper destroyed. Map ----- +----------------------------------------------------+ | ????????????????????????????????????????? | | ????????????????????????????????????????? | | ????????????????????????????????????????? | | ????????????????????????????????????????? | | ????????????????????????????????????????? | | ????????????????????????????????????????? | | ????????????????????????????????????????? | | ????????????????????????????????????????? | | ????????????????????????????????????????? | | ????????????????????????? ????????????? | | ????????????????????????? #???????????? | | ????????????????????????? #???????????? | | ????????????????????????? #???????????? | | ????????????????????????# #???????????? | | ????????????????????????# #???????????? | | ???????????????########## #???????????? | | ???????????????# # #???????????? | | ???????????????# # #???????????? | | ???????????????# ! # ^#???????????? | | ???????????????# # ^ +???????????? | | #??????????????# + #???????????? | | #?????????????# *=# #???????????? | | ??????????????# !![=# #???????????? | | ??????????????# ! ![gg# #???????????? | | ??????????????# %![!g/ #???????????? | | ???????????????##########@ #???????????? | | ?????????????????# ####u #???????????? | | ?????????????????# T #???????????? | | ?????????????????# ######+#???????????? | | ??????????????##### ##???? ???????????? | | #############?# #?????"""???????????? | | #?# #???? "T" ??????????? | | """" """ ### #???? " " ??????????? | | """" """ ## ##+#### #?????????? | | """" """ ## # # [ #?????????? | | / # ########?????????? | | ############## # """#????????????????? | | ?????????????# # """#????????????????? | | ?????????????# # """#????????????????? | | ?????????????# # """#????????????????? | | ?????????????# # #????????????????? | | ?????????????# # """#????????????????? | | ?????????????# # """#????????????????? | | ?????????????# # """#????????????????? | | ?????????????# # """#????????????????? | | ?????????????# + #????????????????? | | ########?????# #######????????????????? | | # #?????# #??????????????????????? | | # """ #?????# #??????????????????????? | | # """ #?????# #??????????????????????? | +----------------------------------------------------+ Best States ------------- Heat Dissipation 28 Energy Generation 10 Energy Capacity 125 Matter Stores 300 Matter Capacity 300 Sight Range 16 Terrain Scan Density 10 Core Shielding 20 Evasion (%) 55 Recoil Reduction 2 Item Schematics ----------------- None Robot Schematics ------------------ None Fabricated ------------ Nothing Alien Tech Used ----------------- None Achievements -------------- None Challenges ------------ None Game ------ Seed BoreGravityModule Manual? 0 Play Time 00:10:15 Cumulative 5.6 hours Start 2024.06.14 @ 12:37:48 End 2024.06.14 @ 13:22:19 Sessions 3 Manual Loads 0 Difficulty Rogue Special Mode None Game No. 14 Rogue 14 Adventurer 0 Explorer 0 Win Type - Total 0 Types 0/0/0/0/0/0/0/0/0 Lore% 2 Gallery% 13 Achievement% 10 Wizard Run 0 Options --------- Layout 1 ASCII 0 Keyboard 0 Movement Mouse Keybinds 0 Fullscreen 1 Font 32/SmallcapsGlow Map View 50x35 Zoom Use 0% Tactical HUD 0 Map Filters NONE Filters NONE Steam 1 RUN: c60aed6b-f7ad-4a7b-a27a-fec0b64ee1d6